bitfinex/quotes_BTCUSD_20240826
["timestamp","ask_amount","ask_price","bid_price","bid_amount"]
[1724690454456,1.29019197,63814.0,63813.0,0.0649]
[1724690454668,0.470152,63809.0,63808.0,0.1399]
[1724690454849,0.96276501,63809.0,63808.0,0.1399]
[1724690455287,0.97403293,63809.0,63808.0,0.1399]
[1724690455706,1.28927897,63809.0,63808.0,0.0649]
[1724690456537,1.28927897,63809.0,63808.0,0.0659]
[1724690456745,1.28927897,63809.0,63808.0,0.0649]
[1724690457160,1.30027897,63809.0,63808.0,0.0659]
[1724690457365,1.30027897,63809.0,63808.0,0.001]
[1724690457575,1.57203294,63809.0,63808.0,0.001]
[1724690458388,1.30027897,63809.0,63808.0,0.001]
[1724690459597,0.98584397,63809.0,63808.0,0.001]
[1724690461067,0.98684397,63809.0,63808.0,0.001]
[1724690461493,0.98503293,63809.0,63808.0,0.001]
[1724690461710,0.98503293,63809.0,63808.0,0.0019075]
[1724690462327,0.67159793,63809.0,63808.0,0.0019075]
[1724690464847,0.66559793,63809.0,63808.0,0.0019075]
[1724690465072,0.66459793,63809.0,63808.0,0.0009075]
[1724690466192,0.66859793,63809.0,63808.0,0.0009075]
[1724690467917,0.66859793,63809.0,63808.0,0.1576275]
[1724690467918,0.17544593,63809.0,63808.0,0.1576275]
[1724690468122,0.17544593,63809.0,63808.0,0.5517675]
[1724690468330,0.16417801,63809.0,63808.0,0.9275075]
[1724690468745,0.16417801,63809.0,63808.0,1.2409475]
[1724690468746,0.008,63809.0,63808.0,1.2409475]
[1724690468955,0.004,63809.0,63808.0,1.2409475]
[1724690469165,0.000825,63814.0,63813.0,0.299707]
[1724690469380,0.000825,63814.0,63813.0,0.926537]
[1724690469597,0.000825,63814.0,63813.0,1.239952]
[1724690470682,0.001825,63814.0,63813.0,1.247952]
[1724690471573,0.002825,63814.0,63813.0,1.247952]
[1724690473062,0.15900301,63814.0,63813.0,0.151]
[1724690473490,0.32705744,63814.0,63813.0,0.151]
[1724690474354,0.17035244,63814.0,63813.0,0.151]
[1724690474774,0.32705744,63814.0,63813.0,0.151]
[1724690475014,0.64046744,63814.0,63813.0,0.151]
[1724690475531,0.95387744,63814.0,63813.0,0.151]
[1724690478344,0.64046744,63814.0,63813.0,0.151]
[1724690481180,0.95387744,63814.0,63813.0,0.151]
[1724690481863,0.97687744,63814.0,63813.0,0.151]
[1724690482968,0.66346744,63814.0,63813.0,0.151]
[1724690486982,0.35005744,63814.0,63813.0,0.151]
[1724690489381,0.50676244,63814.0,63813.0,0.151]
[1724690489589,0.66346744,63814.0,63813.0,0.151]
[1724690490221,0.19335244,63814.0,63813.0,0.151]
[1724690490428,0.35005744,63814.0,63813.0,0.151]
[1724690491056,0.19335244,63814.0,63813.0,0.307707]
[1724690491269,0.17035244,63814.0,63813.0,0.621122]
[1724690491477,0.17035244,63814.0,63813.0,0.62131064]
[1724690491691,0.17035244,63814.0,63813.0,0.30789564]
[1724690491899,0.17035244,63814.0,63813.0,0.15118864]
[1724690492522,0.17035244,63814.0,63813.0,0.30789564]
[1724690492937,0.17035244,63814.0,63813.0,0.15118864]
[1724690493205,0.17035244,63814.0,63813.0,0.30789564]
[1724690494039,0.66346744,63814.0,63813.0,0.15118864]
[1724690494245,0.35005744,63814.0,63813.0,0.15118864]
[1724690495078,0.66346744,63814.0,63813.0,0.15118864]
[1724690496195,0.71033426,63814.0,63813.0,0.15118864]
[1724690497891,0.39692426,63814.0,63813.0,0.15118864]
[1724690498118,0.71033426,63814.0,63813.0,0.15118864]
[1724690498524,0.39692426,63814.0,63813.0,0.15118864]
[1724690500661,0.21721926,63814.0,63813.0,0.15118864]
[1724690502403,0.21734123,63814.0,63813.0,0.15118864]
[1724690503066,0.21734123,63814.0,63813.0,0.307707]
[1724690503309,0.21734123,63814.0,63813.0,0.621122]
[1724690503521,0.17035244,63814.0,63813.0,0.621122]
[1724690503952,0.17035244,63814.0,63813.0,0.307707]
[1724690504160,0.17035244,63814.0,63813.0,0.621122]
[1724690505061,0.17035244,63814.0,63813.0,0.307707]
[1724690505286,0.24083563,63814.0,63813.0,0.621122]
[1724690505487,0.27569718,63814.0,63813.0,0.307707]
[1724690507203,0.27572709,63814.0,63813.0,0.307707]
[1724690507416,0.26572709,63814.0,63813.0,0.307707]
[1724690507627,0.26572709,63814.0,63813.0,0.151]
[1724690508514,0.42243209,63814.0,63813.0,0.151]
[1724690509369,0.35191899,63814.0,63813.0,0.15118864]
[1724690509950,0.66532899,63814.0,63813.0,0.15118864]
[1724690511662,0.66615399,63814.0,63813.0,0.15118864]
[1724690512534,0.76017146,63814.0,63813.0,0.15118864]
[1724690512989,0.44676146,63814.0,63813.0,0.15118864]
[1724690513228,0.70184654,63814.0,63813.0,0.15118864]
[1724690516306,0.63129244,63814.0,63813.0,0.15118864]
[1724690517367,0.72539406,63814.0,63813.0,0.15118864]
[1724690517516,0.63129244,63814.0,63813.0,0.15118864]
[1724690518314,0.72539406,63814.0,63813.0,0.15118864]
[1724690518982,0.25527906,63814.0,63813.0,0.15118864]
[1724690519193,0.20824188,63814.0,63813.0,0.62131064]
[1724690519399,0.20824188,63814.0,63813.0,1.24814064]
[1724690519400,0.01217443,63814.0,63813.0,1.24814064]
[1724690519607,0.07059666,63827.0,63826.0,0.313351]
[1724690519851,0.15617801,63827.0,63826.0,0.547526]
[1724690520097,0.16764228,63827.0,63826.0,0.547526]
[1724690520346,0.01146427,63827.0,63826.0,0.921677]
[1724690520580,0.04706444,63834.0,63833.0,0.469975]
[1724690520813,0.20321988,63834.0,63833.0,0.608275]
[1724690521516,0.15617801,63834.0,63833.0,0.608275]
[1724690521757,0.15617801,63834.0,63833.0,0.294958]
[1724690522008,0.16767255,63834.0,63833.0,0.294958]
[1724690522937,0.01149454,63834.0,63833.0,0.921592]
[1724690523148,0.001,63834.0,63833.0,1.242909]
[1724690523612,0.001,63834.0,63833.0,1.250909]
[1724690523815,0.001,63834.0,63833.0,1.242909]
[1724690524230,0.001,63834.0,63833.0,1.250909]
[1724690524435,0.001,63834.0,63833.0,1.242909]
[1724690525109,0.02454607,63841.0,63840.0,0.924107]
[1724690525337,0.000825,63849.0,63846.0,0.156625]
[1724690525559,0.16553883,63848.0,63846.0,0.156625]
[1724690525776,0.16553883,63848.0,63847.0,0.156624]
[1724690526035,0.16553883,63848.0,63847.0,0.236124]
[1724690526967,0.16953883,63848.0,63847.0,0.236124]
[1724690527226,0.17253883,63848.0,63847.0,0.297524]
[1724690528608,0.17253883,63848.0,63847.0,0.1409]
[1724690529465,0.01636082,63848.0,63847.0,0.92402]
[1724690529679,0.01636082,63848.0,63847.0,1.237268]
[1724690529907,0.007,63848.0,63847.0,1.237268]
[1724690530566,0.004,63848.0,63847.0,1.237268]
[1724690530792,0.004,63848.0,63847.0,0.297524]
[1724690531009,0.0143846,63848.0,63847.0,0.304524]
[1724690531301,0.0103846,63848.0,63847.0,0.304524]
[1724690531506,0.0113846,63848.0,63847.0,0.304524]
[1724690531749,0.0113846,63848.0,63847.0,0.617772]
[1724690532383,0.16656261,63848.0,63847.0,0.297524]
[1724690532596,0.16656261,63848.0,63847.0,0.305524]
[1724690532802,0.16656261,63848.0,63847.0,0.1489]
[1724690533021,0.16656261,63848.0,63847.0,0.015]
[1724690533022,0.63742661,63848.0,63847.0,0.015]
[1724690533255,0.95066961,63848.0,63847.0,0.015]
[1724690534126,0.63742661,63848.0,63847.0,0.015]
[1724690535196,0.95149461,63848.0,63847.0,0.015]
[1724690535604,0.97449461,63848.0,63847.0,0.015]
[1724690536455,0.97349461,63848.0,63847.0,0.007]
[1724690536655,1.28673761,63848.0,63847.0,0.01]
[1724690537935,1.28573761,63848.0,63847.0,0.003]
[1724690538153,1.28573761,63848.0,63847.0,0.005]
[1724690538377,1.28673761,63848.0,63847.0,0.005]
[1724690538602,1.28673761,63848.0,63827.0,0.313344]
[1724690538603,0.156653,63835.0,63834.0,0.0614]
[1724690538870,0.31283101,63835.0,63834.0,0.0614]
[1724690539103,0.63555424,63835.0,63834.0,0.0614]
[1724690539584,0.16559424,63835.0,63834.0,0.0614]
[1724690539831,0.16559424,63835.0,63834.0,0.0644]
[1724690540499,0.16859424,63835.0,63834.0,0.0644]
[1724690541157,0.16859424,63835.0,63834.0,0.218056]
[1724690541617,0.17059424,63835.0,63834.0,0.218056]
[1724690541832,0.17059424,63835.0,63834.0,0.0614]
[1724690542054,0.16859424,63835.0,63834.0,0.0614]
[1724690542737,0.16559424,63835.0,63834.0,0.0614]
[1724690542957,0.16559424,63835.0,63834.0,0.0654]
[1724690543370,0.16559424,63835.0,63834.0,0.0614]
[1724690543985,0.16559424,63835.0,63834.0,0.218056]
[1724690544221,0.16559424,63835.0,63834.0,0.531368]
[1724690545902,0.00941623,63835.0,63834.0,1.238292]
[1724690546327,0.157447,63848.0,63845.0,0.1438]
[1724690546536,0.32220518,63847.0,63845.0,0.1438]
[1724690547798,0.32620518,63847.0,63845.0,0.1438]
[1724690548675,0.16958018,63847.0,63845.0,0.1438]
[1724690548967,0.32620518,63847.0,63845.0,0.1438]
[1724690550302,0.16958018,63847.0,63845.0,0.1438]
[1724690550531,0.17358018,63847.0,63845.0,0.1438]
[1724690550763,0.16958018,63847.0,63845.0,0.1438]
[1724690550976,0.16558018,63847.0,63845.0,0.1438]
[1724690551431,0.32820518,63847.0,63845.0,0.1438]
[1724690551640,0.17158018,63847.0,63846.0,0.156626]
[1724690551848,0.16217801,63847.0,63846.0,0.469879]
[1724690552070,0.17160284,63847.0,63846.0,0.469879]
[1724690552487,0.16860284,63847.0,63846.0,0.469879]
[1724690553116,0.16860284,63847.0,63846.0,0.783132]
[1724690553327,0.17160284,63847.0,63846.0,0.783132]
[1724690553548,0.16217801,63847.0,63846.0,0.783132]
[1724690554879,0.16217801,63847.0,63846.0,1.096385]
[1724690555094,0.16217801,63847.0,63846.0,1.176685]
[1724690555529,0.16217801,63847.0,63846.0,1.240185]
[1724690555530,0.006,63847.0,63846.0,1.240185]
[1724690556353,0.003,63847.0,63846.0,1.240185]
[1724690556643,0.000825,63848.0,63847.0,1.096368]
[1724690556877,0.000825,63848.0,63847.0,1.240168]
[1724690557365,0.000825,63848.0,63847.0,1.553416]
[1724690558080,0.001825,63848.0,63847.0,1.561416]
[1724690559618,0.002825,63848.0,63847.0,1.568416]
[1724690560665,0.001825,63848.0,63847.0,1.561416]
[1724690560866,0.001825,63848.0,63847.0,1.563416]
[1724690561078,0.002825,63848.0,63847.0,1.577416]
[1724690569061,0.179875,63860.0,63859.0,0.217494]
[1724690569314,0.179875,63860.0,63859.0,0.530683]
[1724690569909,0.179875,63860.0,63859.0,0.843872]
[1724690570354,0.179875,63860.0,63859.0,0.782972]
[1724690570807,0.179875,63860.0,63859.0,0.783972]
[1724690571014,0.179875,63860.0,63859.0,0.785972]
[1724690571659,0.003,63867.0,63859.0,0.316189]
[1724690571883,0.31275601,63866.0,63862.0,0.156586]
[1724690573870,0.31275601,63866.0,63863.0,0.156583]
[1724690573871,0.15617801,63866.0,63863.0,0.156583]
[1724690574076,0.31275701,63866.0,63861.0,0.156589]
[1724690574284,0.31275701,63866.0,63862.0,0.156586]
[1724690575924,0.31275701,63866.0,63861.0,0.156588]
[1724690576887,0.31275701,63866.0,63862.0,0.156587]
[1724690577516,0.31275701,63866.0,63861.0,0.156589]
[1724690577970,0.15717801,63866.0,63863.0,0.156584]
[1724690578183,0.15617801,63866.0,63863.0,0.156584]
[1724690578392,0.15617801,63866.0,63862.0,0.294887]
[1724690578819,0.15617801,63866.0,63863.0,0.156584]
[1724690579228,0.15617801,63866.0,63862.0,0.1383]
[1724690579477,0.15617801,63866.0,63863.0,0.156584]
[1724690580119,0.15617801,63866.0,63862.0,0.451472]
[1724690580325,0.15617801,63866.0,63863.0,0.156583]
[1724690580869,0.15617801,63866.0,63864.0,0.156582]
[1724690581357,0.15617801,63866.0,63862.0,0.451472]
[1724690581599,0.15617801,63866.0,63863.0,0.156584]
[1724690581864,0.0627,63865.0,63860.0,0.313181]
[1724690582104,0.156585,63863.0,63859.0,0.156593]
[1724690582372,0.156598,63858.0,63852.0,0.32364149]
[1724690582635,0.31277801,63857.0,63852.0,0.156611]
[1724690582894,0.32719589,63857.0,63852.0,0.156611]
[1724690583158,0.17059589,63857.0,63855.0,0.156603]
[1724690583406,0.17059589,63857.0,63851.0,0.374126]
[1724690583407,0.17059589,63857.0,63854.0,0.156606]
[1724690583941,0.17059589,63857.0,63850.0,0.156616]
[1724690583942,0.023,63856.0,63850.0,0.156616]
[1724690584206,0.15617801,63855.0,63852.0,0.002]
[1724690584735,0.17059589,63855.0,63852.0,0.002]
[1724690584990,0.17059589,63855.0,63852.0,0.158611]
[1724690585815,0.17059589,63855.0,63853.0,0.156609]
[1724690586056,0.17059589,63855.0,63854.0,0.002]
[1724690586314,0.17059589,63855.0,63853.0,0.156609]
[1724690587395,0.01441788,63855.0,63854.0,1.546863]
[1724690587927,0.000824,63866.0,63865.0,0.9203]
[1724690588202,0.15700201,63866.0,63865.0,0.9203]
[1724690590470,0.15700201,63866.0,63865.0,0.9213]
[1724690591763,0.000824,63866.0,63865.0,1.54662]
[1724690592733,0.000824,63866.0,63865.0,1.54762]
[1724690593157,0.000824,63866.0,63865.0,3.54762]
[1724690593373,0.000824,63866.0,63865.0,3.55662]
[1724690593824,0.000824,63866.0,63865.0,3.56462]
[1724690595820,0.00063555,63866.0,63865.0,3.56462]
[1724690607122,0.00063555,63866.0,63865.0,3.55662]
[1724690607553,0.00063555,63866.0,63865.0,3.56662]
[1724690608581,0.00063555,63866.0,63865.0,3.55662]
[1724690608935,0.00063555,63866.0,63865.0,3.56762]
[1724690609327,0.15681356,63866.0,63865.0,2.4916464]
[1724690609733,0.00063555,63866.0,63865.0,2.9487064]
[1724690610058,0.00063555,63866.0,63865.0,3.2618664]
[1724690610713,0.00063555,63866.0,63865.0,3.3618664]
[1724690611028,0.00063555,63866.0,63865.0,3.6650264]
[1724690611162,0.00063555,63866.0,63865.0,3.3648664]
[1724690611584,0.00063555,63866.0,63865.0,3.3518664]
[1724690611764,0.00063555,63866.0,63865.0,3.3408664]
[1724690611967,0.00063555,63866.0,63865.0,3.3548664]
[1724690612192,0.00825,63891.0,63866.0,0.0646]
[1724690612409,0.024531,63901.0,63866.0,0.0646]
[1724690612410,0.47700099,63912.0,63897.0,0.00098544]
[1724690612599,0.47700099,63912.0,63904.0,0.861722]
[1724690612797,0.47700099,63912.0,63904.0,0.235784]
[1724690613067,0.47700099,63912.0,63898.0,0.0646]
[1724690613275,0.0709,63907.0,63904.0,0.469453]
[1724690613488,0.0709,63907.0,63898.0,0.0646]
[1724690613703,0.00824,63912.0,63906.0,0.156479]
[1724690613933,0.00824,63912.0,63907.0,0.156475]
[1724690614137,0.15617801,63911.0,63905.0,0.312963]
[1724690614346,0.15617801,63911.0,63900.0,0.10320885]
[1724690614552,0.15617801,63911.0,63908.0,0.156472]
[1724690614761,0.15617801,63911.0,63909.0,0.156471]
[1724690614968,0.15617801,63911.0,63907.0,0.156476]
[1724690615635,0.15617801,63911.0,63908.0,0.156473]
[1724690615840,0.15617801,63911.0,63909.0,0.15647]
[1724690616562,0.0661,63910.0,63909.0,0.15647]
[1724690616782,0.22227801,63910.0,63909.0,0.15647]
[1724690616991,0.22227801,63910.0,63898.0,0.0646]
[1724690617196,0.0661,63910.0,63909.0,0.156472]
[1724690617406,0.0661,63910.0,63903.0,0.312972]
[1724690617614,0.0661,63910.0,63907.0,0.156476]
[1724690617835,0.0661,63910.0,63909.0,0.004]
[1724690618037,0.00824,63912.0,63909.0,0.004]
[1724690618250,0.00824,63912.0,63910.0,0.156469]
[1724690618448,0.00824,63912.0,63906.0,0.312957]
[1724690618657,0.00824,63912.0,63910.0,0.156469]
[1724690619275,0.03275706,63912.0,63910.0,0.156469]
[1724690619491,0.03275706,63912.0,63909.0,0.15647]
[1724690619692,0.15617801,63911.0,63909.0,0.15647]
[1724690619919,0.15617801,63911.0,63910.0,0.15947]
[1724690620119,0.15617801,63911.0,63910.0,0.003]
[1724690620832,0.19147801,63911.0,63910.0,0.005]
[1724690621229,0.19147801,63911.0,63908.0,0.156473]
[1724690621384,0.19147801,63911.0,63909.0,0.005]
[1724690621584,0.19147801,63911.0,63910.0,0.003]
[1724690621815,0.21599304,63911.0,63910.0,0.003]
[1724690622215,0.21599304,63911.0,63910.0,0.008]
[1724690622568,0.21599304,63911.0,63910.0,0.003]
[1724690622810,0.21599304,63911.0,63910.0,0.005]
[1724690622997,0.21599304,63911.0,63910.0,0.15847]
[1724690622998,0.18069304,63911.0,63910.0,0.15847]
[1724690623225,0.18069304,63911.0,63910.0,0.47141]
[1724690623945,0.18069304,63911.0,63910.0,0.15847]
[1724690624141,0.18069304,63911.0,63910.0,0.15947]
[1724690624340,0.18069304,63911.0,63910.0,0.15747]
[1724690624541,0.18069304,63911.0,63910.0,0.15847]
[1724690624965,0.18069304,63911.0,63910.0,0.15947]
[1724690625321,0.18069304,63911.0,63910.0,0.15747]
[1724690625732,0.18069304,63911.0,63910.0,0.16047]
[1724690625935,0.18069304,63911.0,63910.0,0.004]
[1724690626240,0.18069304,63911.0,63910.0,0.003]
[1724690626435,0.18069304,63911.0,63910.0,0.005]
[1724690626661,0.65009504,63911.0,63910.0,0.005]
[1724690626860,1.05213004,63911.0,63910.0,0.005]
[1724690627211,1.05213004,63911.0,63910.0,0.003]
[1724690627212,1.06541732,63911.0,63910.0,0.003]
[1724690627416,0.75248232,63911.0,63910.0,0.005]
[1724690627593,0.43954732,63911.0,63910.0,0.005]
[1724690627824,0.43954732,63911.0,63910.0,0.002]
[1724690627825,0.75248232,63911.0,63910.0,0.002]
[1724690628235,0.75248232,63911.0,63910.0,0.005]
[1724690628620,0.76884729,63911.0,63910.0,0.005]
[1724690629677,1.08178229,63911.0,63910.0,0.005]
[1724690629841,1.39571729,63911.0,63910.0,0.005]
[1724690630184,1.40801729,63911.0,63910.0,0.005]
[1724690630560,1.40801729,63911.0,63910.0,0.003]
[1724690631632,0.156482,63905.0,63900.0,0.156493]
[1724690631831,0.17917801,63904.0,63898.0,0.375194]
[1724690632036,0.19245582,63904.0,63900.0,0.156493]
[1724690632238,0.34894082,63904.0,63900.0,0.156493]
[1724690632431,0.0245183,63903.0,63900.0,0.156493]
[1724690632589,0.17917801,63902.0,63900.0,0.156493]
[1724690632850,0.17917801,63902.0,63899.0,0.156496]
[1724690633053,0.01327781,63901.0,63900.0,0.156494]
[1724690633234,0.16945582,63901.0,63900.0,0.782472]
[1724690633653,0.15617801,63901.0,63900.0,0.787472]
[1724690634999,0.15617801,63901.0,63900.0,0.005]
[1724690635212,0.19245582,63901.0,63900.0,0.005]
[1724690635428,0.19245582,63901.0,63900.0,0.156494]
[1724690635736,0.19245582,63901.0,63900.0,0.007]
[1724690636135,0.19245582,63901.0,63900.0,0.012]
[1724690637844,0.19245582,63901.0,63900.0,0.0952]
[1724690639108,0.16926747,63901.0,63900.0,0.877672]
[1724690639336,0.15598966,63901.0,63900.0,0.877672]
[1724690641847,0.15598966,63901.0,63900.0,1.190661]
[1724690642059,0.15598966,63901.0,63900.0,1.252861]
[1724690642264,0.0245183,63903.0,63902.0,1.095426]
[1724690643963,0.04088302,63903.0,63902.0,1.095426]
[1724690644513,0.04088302,63903.0,63902.0,1.101426]
[1724690645275,0.04088302,63903.0,63902.0,0.788447]
[1724690645576,0.04088302,63903.0,63902.0,0.797447]
[1724690645856,0.04088302,63903.0,63902.0,0.791447]
[1724690646071,0.04088302,63903.0,63902.0,0.798447]
[1724690646723,0.19706103,63903.0,63902.0,0.172489]
[1724690646926,0.21029815,63903.0,63902.0,0.485468]
[1724690647343,0.21029815,63903.0,63902.0,0.016]
[1724690647549,0.21029815,63903.0,63902.0,0.172489]
[1724690649527,0.21029815,63903.0,63902.0,0.016]
[1724690649731,0.21029815,63903.0,63902.0,0.172489]
[1724690650010,0.21029815,63903.0,63902.0,0.016]
[1724690651121,0.36678515,63903.0,63902.0,0.016]
[1724690651315,0.21029815,63903.0,63902.0,0.016]
[1724690652319,0.36678515,63903.0,63902.0,0.016]
[1724690653919,0.21029815,63903.0,63902.0,0.016]
[1724690654120,0.21029815,63903.0,63902.0,0.328979]
[1724690654324,0.21029815,63903.0,63902.0,0.877647]
[1724690654325,0.18577985,63903.0,63902.0,0.877647]
[1724690654547,0.18577985,63903.0,63902.0,0.937847]
[1724690654746,0.18577985,63903.0,63902.0,1.250826]
[1724690654747,0.01636472,63903.0,63902.0,1.250826]
[1724690654946,0.1,63907.0,63906.0,0.921797]
[1724690655186,0.1,63907.0,63906.0,1.234756]
[1724690656244,0.1,63907.0,63906.0,1.237756]
[1724690656954,0.25617801,63907.0,63906.0,0.924797]
[1724690657445,0.29178271,63907.0,63906.0,0.924797]
[1724690658079,0.29178271,63907.0,63906.0,0.929797]
[1724690658298,0.26727019,63907.0,63906.0,0.929797]
[1724690659139,0.26727019,63907.0,63906.0,0.008]
[1724690659140,0.42374719,63907.0,63906.0,0.008]
[1724690659758,0.73670119,63907.0,63906.0,0.008]
[1724690659960,0.42374719,63907.0,63906.0,0.008]
[1724690660642,0.49391457,63907.0,63906.0,0.008]
[1724690660996,0.31420271,63907.0,63906.0,0.003]
[1724690661149,0.47067971,63907.0,63906.0,0.004]
[1724690661353,0.49519636,63907.0,63906.0,0.004]
[1724690661577,0.44826384,63907.0,63906.0,0.004]
[1724690661776,0.78421784,63907.0,63906.0,0.001]
[1724690662206,1.09717184,63907.0,63906.0,0.002]
[1724690662322,1.14410436,63907.0,63906.0,0.002]
[1724690662516,1.09717184,63907.0,63906.0,0.002]
[1724690662751,1.09698349,63907.0,63906.0,0.002]
[1724690662956,1.569594,63907.0,63906.0,0.002]
[1724690663177,1.63995694,63907.0,63906.0,0.002]
[1724690663380,1.93777635,63907.0,63906.0,0.002]
[1724690663935,2.09565296,63907.0,63906.0,0.002]
[1724690664058,1.93777635,63907.0,63906.0,0.002]
[1724690664265,1.93777635,63907.0,63906.0,0.001]
[1724690664488,2.09613103,63907.0,63906.0,0.001]
[1724690664690,0.00081104,63904.0,63903.0,0.0043335]
[1724690664903,1.61467209,63904.0,63903.0,0.0043335]
[1724690665257,2.09548521,63904.0,63903.0,0.0043335]
[1724690665487,2.11848521,63904.0,63903.0,0.0043335]
[1724690666219,2.11848521,63904.0,63903.0,0.0053335]
[1724690666624,2.11848521,63904.0,63903.0,0.0043335]
[1724690666820,1.50059194,63904.0,63903.0,0.0043335]
[1724690667290,1.50059194,63904.0,63903.0,0.0053335]
[1724690667681,1.50059194,63904.0,63903.0,0.0043335]
[1724690667889,1.50059194,63904.0,63903.0,0.0053335]
[1724690668080,1.95422194,63904.0,63903.0,0.0063335]
[1724690668359,1.95422194,63904.0,63903.0,0.0053335]
[1724690668568,1.50059194,63904.0,63903.0,0.0043335]
[1724690668780,1.50059194,63904.0,63903.0,0.0053335]
[1724690668986,1.50059194,63904.0,63903.0,0.0063335]
[1724690669207,1.6177478,63904.0,63903.0,0.0063335]
[1724690669706,1.6177478,63904.0,63903.0,0.0053335]
[1724690670110,1.59430707,63904.0,63903.0,0.0053335]
[1724690670238,1.55963325,63904.0,63903.0,0.0053335]
[1724690670447,1.55963075,63904.0,63903.0,0.0063335]
[1724690670646,1.55963082,63904.0,63903.0,0.0063335]
[1724690670905,1.53438877,63904.0,63903.0,0.0053335]
[1724690671108,1.52208877,63904.0,63903.0,0.0053335]
[1724690671337,1.52389981,63904.0,63903.0,0.0043335]
[1724690671870,1.52389981,63904.0,63903.0,0.002]
[1724690672475,1.54732704,63904.0,63903.0,0.002]
[1724690672830,1.56369706,63904.0,63903.0,0.002]
[1724690673240,1.46998774,63904.0,63903.0,0.002]
[1724690673441,1.54732744,63904.0,63903.0,0.002]
[1724690673641,0.99658773,63904.0,63903.0,0.002]
[1724690673911,1.09658797,63904.0,63903.0,0.002]
[1724690674022,1.04973808,63904.0,63903.0,0.002]
[1724690674451,0.32380008,63904.0,63903.0,0.0778]
[1724690674863,0.32380008,63904.0,63903.0,0.0768]
[1724690675068,0.63676908,63904.0,63903.0,0.1371]
[1724690675717,0.63676908,63904.0,63903.0,0.1361]
[1724690675979,1.67234926,63904.0,63903.0,0.001]
[1724690676183,1.7313749,63904.0,63903.0,0.001]
[1724690676401,1.45961682,63904.0,63903.0,0.001]
[1724690676533,1.43618887,63904.0,63903.0,0.001]
[1724690677124,0.00181104,63903.0,63901.0,0.0009064]
[1724690677296,1.25160401,63902.0,63901.0,0.0009064]
[1724690677527,1.28546926,63902.0,63901.0,0.0009064]
[1724690677881,1.30999045,63902.0,63901.0,0.0009064]
[1724690678081,1.62478049,63902.0,63901.0,0.0009064]
[1724690678534,1.75946498,63902.0,63901.0,0.0019064]
[1724690678739,1.75946498,63902.0,63901.0,0.0029064]
[1724690679146,1.87658395,63902.0,63901.0,0.0029064]
[1724690679360,1.75946498,63902.0,63901.0,0.0029064]
[1724690680391,1.72478049,63902.0,63901.0,0.0029064]
[1724690680586,1.81845084,63902.0,63901.0,0.0029064]
[1724690681620,1.72478049,63902.0,63901.0,0.0029064]
[1724690681823,1.87656418,63902.0,63901.0,0.0029064]
[1724690682027,1.75946606,63902.0,63901.0,0.0029064]
[1724690682435,1.9426425,63902.0,63901.0,0.0029064]
[1724690683444,1.9426425,63902.0,63901.0,0.0019064]
[1724690683910,1.9426425,63902.0,63901.0,0.0029064]
[1724690684112,1.9426425,63902.0,63901.0,0.0019064]
[1724690684305,1.9426425,63902.0,63901.0,0.0029064]
[1724690685111,1.94261527,63902.0,63901.0,0.0029064]
[1724690685333,1.54053627,63902.0,63901.0,0.0029064]
[1724690685448,1.38880149,63902.0,63901.0,0.0029064]
[1724690685662,1.38861316,63902.0,63901.0,0.0029064]
[1724690686371,1.43542474,63902.0,63901.0,0.0029064]
[1724690686703,1.0436347,63902.0,63901.0,0.0019064]
[1724690686911,1.00482312,63902.0,63901.0,0.1442064]
[1724690687148,1.00482312,63902.0,63901.0,0.1432064]
[1724690687507,1.0566347,63902.0,63901.0,0.1442064]
[1724690687882,1.00182312,63902.0,63901.0,0.1432064]
[1724690688024,1.31480212,63902.0,63901.0,0.1432064]
[1724690688227,1.00282312,63902.0,63901.0,0.1432064]
[1724690688428,1.00363416,63902.0,63901.0,0.0019064]
[1724690688636,1.31861316,63902.0,63901.0,0.0019064]
[1724690689100,1.33998289,63902.0,63901.0,0.0019064]
[1724690689411,1.38680184,63902.0,63901.0,0.0019064]
[1724690689643,1.39383053,63902.0,63901.0,0.0019064]
[1724690689845,1.31661316,63902.0,63901.0,0.0009064]
[1724690690847,1.38684144,63902.0,63901.0,0.0009064]
[1724690691474,1.42153415,63902.0,63901.0,0.0009064]
[1724690692225,1.35130587,63902.0,63901.0,0.0009064]
[1724690692836,1.43791788,63902.0,63901.0,0.0009064]
[1724690693250,1.43874188,63902.0,63901.0,0.0009064]
[1724690694238,1.36849953,63902.0,63901.0,0.0009064]
[1724690696045,1.36849953,63902.0,63901.0,0.0768064]
[1724690697433,1.36849953,63902.0,63901.0,0.0009064]
[1724690697836,2.22898921,63902.0,63901.0,0.0009064]
[1724690698044,2.01601021,63902.0,63901.0,0.0009064]
[1724690698468,2.48700286,63902.0,63901.0,0.0009064]
[1724690698692,2.32898921,63902.0,63901.0,0.0009064]
[1724690699101,2.32398921,63902.0,63901.0,0.0009064]
[1724690699360,2.48205035,63902.0,63901.0,0.0009064]
[1724690699572,2.48705035,63902.0,63901.0,0.0019064]
[1724690700180,2.49205035,63902.0,63901.0,0.0029064]
[1724690700401,2.33398921,63902.0,63901.0,0.0029064]
[1724690700557,2.32898921,63902.0,63901.0,0.0019064]
[1724690701339,2.49805662,63902.0,63901.0,0.0029064]
[1724690701545,2.33998921,63902.0,63901.0,0.0029064]
[1724690701749,2.32898921,63902.0,63901.0,0.0019064]
[1724690701972,2.32898921,63902.0,63871.0,0.00018896]
[1724690701973,0.313087,63880.0,63879.0,0.0652]
[1724690702174,1.25198201,63880.0,63879.0,0.0652]
[1724690702556,1.28582524,63880.0,63879.0,0.0652]
[1724690702730,1.31035446,63880.0,63879.0,0.0652]
[1724690703353,1.31035446,63880.0,63879.0,0.0692]
[1724690703592,1.31035446,63880.0,63879.0,0.0652]
[1724690704152,1.31035446,63880.0,63879.0,0.0692]
[1724690704658,1.31035446,63880.0,63879.0,0.0652]
[1724690704815,1.31035446,63880.0,63879.0,0.0661064]
[1724690705014,1.31035446,63880.0,63879.0,0.0671064]
[1724690708293,1.35720621,63880.0,63879.0,0.0671064]
[1724690708523,1.31035446,63880.0,63879.0,0.0671064]
[1724690708676,1.31035446,63880.0,63879.0,0.0171064]
[1724690711083,0.19155046,63880.0,63879.0,0.0922064]